Cogmind - Beta 13 @@@ ROGUE MODE // 2024.04.16 @ 04:34:58 Player: A Moose Result: Core destroyed Performance ------------- Evolutions (2) 1000 Regions Visited (7) 1400 Robots Destroyed (40) 200 Value Destroyed (1414) 1414 Prototype IDs (3) 60 Alien Tech Used (0) 0 Bonus (801) 801 TOTAL SCORE: 4875 Bonus ------- High Alert Combat Kills 6 Follower Combat Kills 223 Entered Garrisons 200 Used RIF Installer 500 Friendly Fire -128 Cogmind --------- Core Integrity 0/550 Matter 178/300 Energy 68/100 System Corruption 0% Temperature Cool (0) Movement Walking (120) Location -8/Storage Parts ------- > --- POWER (1) -------- (None) > --- PROPULSION (2) --- Carbon-fiber Leg > --- UTILITY (6) ------ (None) > --- WEAPON (2) ------- (None) > --- INVENTORY (5) ---- Relay Coupler [NC] (25) Relay Coupler [Specialist] (19) Peak State ------------ > --- POWER ------------ Light Nuclear Core > --- PROPULSION ------- Wheel Compact Wheel > --- UTILITY ---------- Large Storage Unit Improved Terrain Scanner Melee Analysis Suite Improved Light Armor Plating Bomb Drone Bay > --- WEAPON ----------- Heavy Assault Rifle Heavy Flail > --- INVENTORY -------- Wheel Compact Wheel Improved Heat Sink Small Storage Unit Medium Storage Unit Melee Analysis Suite Improved Light Armor Plating Hacking Suite Heavy Assault Rifle Heavy Assault Rifle Heavy Assault Rifle Assault Cannon Rocket Launcher Heavy Flail [Rating: 37] Favorites ----------- Power Light Ion Engine Engine Light Ion Engine Power Core Micro Nuclear Core Propulsion Wheel Leg Carbon-fiber Leg Wheel Wheel Flight Unit Flight Unit Utility Melee Analysis Suite Device Improved Terrain Scanner Storage Small Storage Unit Processor Melee Analysis Suite Hackware Hacking Suite Protection Improved Light Armor Plating Weapon Heavy Assault Rifle Energy Gun Heavy Laser Ballistic Gun Heavy Assault Rifle Ballistic Cannon Assault Cannon Launcher Grenade Launcher Impact Weapon Heavy Flail Build | -11 -10 -10 -10 -9 -8 -8 -8 ------- Run | Yrd Mat Min Exi Min Mat Gar Sto Slots Evolved 4 | . . . . . 4 . . Power . | . . . . . . . . Propulsion . | . . . . . . . . Utility 4 | . . . . . 4 . . Weapon . | . . . . . . . . Parts Attached 50 | 6 10 . . . 7 20 7 Power 5 | . 2 . . . 2 1 . Engine 2 | . 2 . . . . . . Core 3 | . . . . . 2 1 . Reactor . | . . . . . . . . Propulsion 11 | 2 1 . . . 1 4 3 Treads . | . . . . . . . . Leg 2 | . . . . . . . 2 Wheel 6 | 2 1 . . . 1 2 . Hover . | . . . . . . . . Flight 3 | . . . . . . 2 1 Utility 16 | 2 . . . . 4 9 1 Device 6 | 1 . . . . 2 2 1 Storage 3 | 1 . . . . 1 1 . Processor 3 | . . . . . . 3 . Hackware 1 | . . . . . . 1 . Protection 3 | . . . . . 1 2 . Artifact . | . . . . . . . . Weapon 18 | 2 7 . . . . 6 3 Energy Gun 1 | . . . . . . . 1 Energy Cannon . | . . . . . . . . Ballistic Gun 9 | 2 5 . . . . 2 . Ballistic Cannon 1 | . . . . . . 1 . Launcher 3 | . 2 . . . . 1 . Special Weapon . | . . . . . . . . Impact Weapon 4 | . . . . . . 2 2 Slashing Weapon . | . . . . . . . . Piercing Weapon . | . . . . . . . . Special Melee Weapon . | . . . . . . . . Unidentified Prototypes 1 | . . . . . 1 . . Parts Lost 17 | . 4 . . . 2 9 2 Power 3 | . 1 . . . 1 1 . Propulsion 7 | . 1 . . . 1 4 1 Utility 4 | . 1 . . . . 2 1 Weapon 3 | . 1 . . . . 2 . Highest Loss Streak 4 | . 3 . . . 1 4 2 To Critical Strikes . | . . . . . . . . Average Slot Usage (%) 79 | . 77 85 85 85 65 80 64 Engine 6 | . 8 14 14 14 5 . . Core 2 | . . . . . . 5 7 Wheel 17 | . 23 28 28 28 16 8 . Flight 2 | . . . . . . 4 11 Device 3 | . 1 . . . 15 5 . Storage 11 | . 14 14 14 14 9 9 7 Processor 7 | . . . . . . 19 21 Hackware 2 | . . . . . . 5 7 Protection 2 | . . . . . . 6 . Ballistic Gun 18 | . 23 28 28 28 18 9 7 Impact Weapon 1 | . . . . . . 4 1 Naked Turns 4 | . . . . . . . 4 Heaviest Build 43 | 9 15 14 14 14 43 43 19 Greatest Support 32 | 26 26 20 20 20 26 32 30 Greatest Overweight (x) 11 | . 1 . . . 2 11 2 Average Overweight (x) . | . . . . . 1 1 1 Largest Inventory Capacity 15 | 8 8 8 8 8 15 15 10 Average Capacity 10 | 7 8 8 8 8 13 14 9 Most Carried 15 | 6 8 7 7 8 15 15 10 Average Carried 9 | 3 6 6 7 7 9 12 8 Final Capacity 15 | 8 8 8 8 8 15 10 5 Final Carried 15 | 5 6 7 7 8 15 10 2 Class Distribution -------------------- 80% | Mutant 19% | Scavenger-Mutant Dominant Class ---------------- Mutant | -10/Materials Mutant | -10/Mines Mutant | -10/Exiles Mutant | -9/Mines Mutant | -8/Materials Mutant | -8/Garrison Scavenger-Mutant | -8/Storage Resources | -11 -10 -10 -10 -9 -8 -8 -8 ----------- Run | Yrd Mat Min Exi Min Mat Gar Sto Matter Collected 1127 | 267 274 32 . 24 242 288 . Remotely 168 | 168 . . . . . . . Salvage Created 1200 | 72 321 132 . . 361 314 . Parts 61 | 5 20 9 . . 17 10 . Haulers Intercepted 2 | . 1 . . . 1 . . Recyclers Shooed . | . . . . . . . . Parts Field Recycled . | . . . . . . . . Retrieved Matter . | . . . . . . . . Parts Self-Destructed . | . . . . . . . . Prevented . | . . . . . . . . Kills | -11 -10 -10 -10 -9 -8 -8 -8 ------- Run | Yrd Mat Min Exi Min Mat Gar Sto Combat Hostiles Destroyed 30 | . 9 5 . . 5 11 . Guns 16 | . 3 5 . . 5 3 . Cannons 2 | . . . . . . 2 . AOE 8 | . 6 . . . . 2 . Classes Destroyed 8 | 1 5 . . . . 2 . Worker 1 | . 1 . . . . . . Hauler 2 | . 1 . . . 1 . . Recycler 2 | 1 1 . . . . . . Watcher 4 | . 2 . . . 2 . . Swarmer 14 | . 6 3 . . 2 3 . Grunt 12 | . 3 2 . . 4 3 . Duelist 1 | . . . . . . 1 . Sentry 4 | . . . . . . 4 . Best Kill Streak 6 | 1 6 3 . . 3 3 . Combat Bots Only 5 | . 5 3 . . 2 3 . Max Kills in Single Turn 3 | 1 3 1 . . 1 1 . Gunslinging . | . . . . . . . . Exploded 3 | . 3 . . . . 1 . Melee . | . . . . . . . . Uniques/NPCs Destroyed . | . . . . . . . . Combat | -11 -10 -10 -10 -9 -8 -8 -8 -------- Run | Yrd Mat Min Exi Min Mat Gar Sto Hostile Shots Fired 248 | . 71 14 . . 17 118 28 Missed 62 | . 22 2 . . 3 30 5 Damage Taken 2667 | . 548 100 . . 222 1267 530 Core 730 | . 145 19 . . 15 277 274 Absorbed by Shields . | . . . . . . . . Regen/Repaired (Parts) 4 | . . . . . . . 4 Core Remaining (%) 67 | 100 . . . 34 . . . Volleys Fired 90 | 2 27 10 . . 23 23 5 Largest 2 | 2 2 2 . . 2 2 2 Hottest 92 | 40 50 46 . . 46 67 92 Shots Fired 164 | 4 47 20 . . 46 39 8 Gun 142 | 4 38 20 . . 46 26 8 Cannon 9 | . . . . . . 9 . Launcher 13 | . 9 . . . . 4 . Special . | . . . . . . . . Kinetic 148 | 4 38 20 . . 46 35 5 Thermal 3 | . . . . . . . 3 Explosive 13 | . 9 . . . . 4 . Electromagnetic . | . . . . . . . . Robot Hit Streak 9 | 2 5 7 . . 9 8 5 Robot Miss Streak 6 | 1 6 6 . . 3 2 3 Penetration Max . | . . . . . . . . Secondary Targets 2 | . 1 1 . . . . . Max Gunslinging Chain 1 | . 1 1 . . . . . Shots Hit Robots 105 | 3 21 9 . . 25 42 5 Core Hits 56 | 2 23 5 . . 15 11 . Critical Kills 1 | . . 1 . . . . . Critical Parts Destroyed 4 | . . . . . . 4 . Critical Strikes 6 | . . 1 . . . 4 1 Burn 1 | . . . . . . . 1 Destroy 1 | . . 1 . . . . . Smash 4 | . . . . . . 4 . Melee Attacks 32 | . . . . . . 31 1 Impact 32 | . . . . . . 31 1 Slashing . | . . . . . . . . Piercing . | . . . . . . . . Sneak Attacks . | . . . . . . . . Combat Hostiles . | . . . . . . . . Follow-up Attacks . | . . . . . . . . Damage Inflicted 2671 | 30 728 127 . . 421 1276 89 Guns 1130 | 30 228 127 . . 421 236 88 Cannons 101 | . . . . . . 101 . Explosions 625 | . 500 . . . . 125 . Melee 814 | . . . . . . 814 . Ramming 1 | . . . . . . . 1 Kinetic 1193 | 30 228 127 . . 421 337 50 Thermal 38 | . . . . . . . 38 Explosive 532 | . 407 . . . . 125 . Electromagnetic 93 | . 93 . . . . . . Impact 814 | . . . . . . 814 . Slashing . | . . . . . . . . Piercing . | . . . . . . . . Highest Corruption . | . . . . . . . . Average Corruption . | . . . . . . . . Corruption Purged . | . . . . . . . . Corruption Blocked . | . . . . . . . . Overload Shots . | . . . . . . . . Overflow Damage 265 | . 9 . . . . 256 . Projectiles . | . . . . . . . . Explosions 16 | . 9 . . . . 7 . Melee 249 | . . . . . . 249 . Knockbacks 4 | . . . . . . 4 . Impact 3 | . . . . . . 3 . Kinetic 1 | . . . . . . 1 . Secondary . | . . . . . . . . Self-Inflicted Damage 29 | . 29 . . . . . . Shots 1 | . 1 . . . . . . Rammed 1 | 1 . . . . . . . Targets Rammed 2 | 1 . . . . . . 1 Kicked 1 | . . . . . . . 1 Crushed . | . . . . . . . . Highest Temperature 46 | . 24 4 . . 11 14 46 Average Temperature 12 | . 7 4 . . 11 7 29 Received Heat Transfer 975 | . 228 9 . . 108 540 90 Siege Activations . | . . . . . . . . Robots Corrupted . | . . . . . . . . Combat Hostiles . | . . . . . . . . Parts Fried 5 | . 1 . . . . 4 . Impact Corruptions 8 | . . . . . . 8 . Robots Melted . | . . . . . . . . Combat Hostiles . | . . . . . . . . Parts Melted . | . . . . . . . . Heat Transferred 148 | . . . . . . . 148 Parts Sabotaged . | . . . . . . . . Parts Stolen . | . . . . . . . . Parts Stripped . | . . . . . . . . Power Chain Reactions . | . . . . . . . . Alert | -11 -10 -10 -10 -9 -8 -8 -8 ------- Run | Yrd Mat Min Exi Min Mat Gar Sto Peak Influence 503 | 5 363 347 . . 294 503 247 Initial 245 | . 3 141 . . . 178 245 Average 240 | 2 198 300 . . 130 322 243 Maximum Alert Level 2 | . 1 1 . . 1 2 1 Low Security (%) 42 | 100 54 23 . 100 69 30 . Level 1 42 | . 45 76 . . 30 32 100 Level 2 15 | . . . . . . 37 . Level 3 . | . . . . . . . . Level 4 . | . . . . . . . . Level 5 . | . . . . . . . . High Security . | . . . . . . . . Max Security . | . . . . . . . . Squads Dispatched 2 | . 1 . . . 1 . . Investigation 1 | . 1 . . . . . . Extermination . | . . . . . . . . Reinforcement . | . . . . . . . . Assault . | . . . . . . . . Garrison 1 | . . . . . 1 . . Intercept . | . . . . . . . . Searches Triggered . | . . . . . . . . Construction Impeded . | . . . . . . . . Haulers Reinforced . | . . . . . . . . Active Scanning Responses . | . . . . . . . . Cargo Convoy Interrupts . | . . . . . . . . Stealth | -11 -10 -10 -10 -9 -8 -8 -8 --------- Run | Yrd Mat Min Exi Min Mat Gar Sto Distress Signals 2 | . . . . . 2 . . Communications Jammed . | . . . . . . . . Distress Signals . | . . . . . . . . Times Spotted 60 | . 17 6 . . 13 21 3 Peak Tracking Total 8 | . 6 3 . . 5 8 3 Tactical Retreats 4 | . 2 1 . . . 1 . Traps | -11 -10 -10 -10 -9 -8 -8 -8 ------- Run | Yrd Mat Min Exi Min Mat Gar Sto Traps Triggered . | . . . . . . . . Indirectly . | . . . . . . . . Trap Hack Attempts . | . . . . . . . . Triggered . | . . . . . . . . Disarmed . | . . . . . . . . Reprogrammed . | . . . . . . . . Reused . | . . . . . . . . Traps Extracted . | . . . . . . . . Installed . | . . . . . . . . Triggered . | . . . . . . . . Machines | -11 -10 -10 -10 -9 -8 -8 -8 ---------- Run | Yrd Mat Min Exi Min Mat Gar Sto Machines Disabled 9 | . 3 3 . . . 2 1 Max in Single Turn 3 | . 2 3 . . . 1 1 Garrison Relay 2 | . . . . . . 2 . Machines Repaired . | . . . . . . . . Machines Dismantled . | . . . . . . . . Machines Sabotaged . | . . . . . . . . Overloaded Fab Kills . | . . . . . . . . Hacking | -11 -10 -10 -10 -9 -8 -8 -8 --------- Run | Yrd Mat Min Exi Min Mat Gar Sto Machines Accessed 11 | . 3 . 4 1 1 1 1 Terminals 4 | . 3 . . . . 1 . Fabricators . | . . . . . . . . Repair Stations 1 | . . . . . . . 1 Recycling Units . | . . . . . . . . Scanalyzers . | . . . . . . . . Garrison Access 1 | . . . . . 1 . . Total Hacks 17 | . 8 . 4 1 1 1 2 Successful 14 | . 5 . 4 1 1 1 2 Failed 3 | . 3 . . . . . . Catastrophic . | . . . . . . . . Database Lockouts . | . . . . . . . . Manual 2 | . . . 2 . . . . Terminals 9 | . 8 . . . . 1 . Fabricators . | . . . . . . . . Repair Stations 2 | . . . . . . . 2 Recycling Units . | . . . . . . . . Scanalyzers . | . . . . . . . . Garrison Access 1 | . . . . . 1 . . Terminal Hacks 11 | . 5 . 4 1 . 1 . Record 4 | . . . 4 . . . . Prototype ID Bank 1 | . 1 . . . . . . Open Door 2 | . . . . 1 . 1 . Level Access Points 1 | . 1 . . . . . . Emergency Access Points 1 | . 1 . . . . . . Alert Level 1 | . 1 . . . . . . Locate Traps 1 | . 1 . . . . . . Fabricator Hacks . | . . . . . . . . Repair Station Hacks 2 | . . . . . . . 2 Scan Component 1 | . . . . . . . 1 Repair 1 | . . . . . . . 1 Recycling Unit Hacks . | . . . . . . . . Scanalyzer . | . . . . . . . . Garrison Access Hacks 1 | . . . . . 1 . . Unlock Access 1 | . . . . . 1 . . Unauthorized Hacks . | . . . . . . . . Terminals . | . . . . . . . . Fabricators . | . . . . . . . . Repair Stations . | . . . . . . . . Recycling Units . | . . . . . . . . Scanalyzers . | . . . . . . . . Garrison Access . | . . . . . . . . Data Cores Recovered . | . . . . . . . . Used . | . . . . . . . . Hacking Detections 4 | . 3 . . . 1 . . Full Trace Events 1 | . 1 . . . . . . Feedback Events . | . . . . . . . . Feedback Blocked . | . . . . . . . . Robot Schematics Acquired . | . . . . . . . . Robots Built . | . . . . . . . . Authchips . | . . . . . . . . Time . | . . . . . . . . Total Robot Build Rating . | . . . . . . . . Part Schematics Acquired . | . . . . . . . . Parts Built . | . . . . . . . . Authchips . | . . . . . . . . Time . | . . . . . . . . Total Part Build Rating . | . . . . . . . . Parts Repaired 1 | . . . . . . . 1 Time 26 | . . . . . . . 26 Parts Recycled . | . . . . . . . . Recycled Matter . | . . . . . . . . Retrieved Matter . | . . . . . . . . Retrieved Components . | . . . . . . . . Parts Scanalyzed . | . . . . . . . . Part Schematics Acquired . | . . . . . . . . Parts Damaged . | . . . . . . . . Bothacking | -11 -10 -10 -10 -9 -8 -8 -8 ------------ Run | Yrd Mat Min Exi Min Mat Gar Sto Used RIF Installer 1 | . . . . . . 1 . Robots Hacked . | . . . . . . . . Non-combat . | . . . . . . . . Combat . | . . . . . . . . Robot Hacks Applied . | . . . . . . . . Relay Couplers Released 11 | . . . . . . 11 . Machine Destruction 8 | . . . . . . 8 . Programmers 3 | . . . . . . 3 . Fabnet Peak Effective % . | . . . . . . . . Robots Rewired . | . . . . . . . . Allies Hacked . | . . . . . . . . Hacks Repelled . | . . . . . . . . Allies | -11 -10 -10 -10 -9 -8 -8 -8 -------- Run | Yrd Mat Min Exi Min Mat Gar Sto Total Allies 5 | . . . . 3 . 2 . Largest Group 3 | . . . . 3 3 2 1 Highest-Rated Group 56 | . . . . 40 40 56 26 Highest-Rated Ally 31 | . . . . 16 16 31 26 Total Orders 1 | . . . . . 1 . . EXPLORE 1 | . . . . . 1 . . Ally Attacks 65 | . . . . . 53 11 1 Total Damage 607 | . . . . . 500 107 . Kills 9 | . . . . . 7 2 . Allies Corrupted . | . . . . . . . . Allies Melted . | . . . . . . . . Intel | -11 -10 -10 -10 -9 -8 -8 -8 ------- Run | Yrd Mat Min Exi Min Mat Gar Sto Robot Analysis Total . | . . . . . . . . Derelict Logs Recovered 1 | . . . . 1 . . . Drone Launches 9 | . . . . . 2 6 1 Drone Recoveries . | . . . . . . . . Exploration | -11 -10 -10 -10 -9 -8 -8 -8 ------------- Run | Yrd Mat Min Exi Min Mat Gar Sto Turns Passed 1885 | 55 225 219 372 74 221 627 92 Spaces Moved 1401 | 40 153 232 465 79 111 293 28 Core 19 | 9 . . . . . 2 8 Treads . | . . . . . . . . Legs 4 | . . . . . . . 4 Wheels 1300 | 31 153 232 465 79 111 229 . Hover . | . . . . . . . . Flight 78 | . . . . . . 62 16 Fastest Speed 50 | 50 80 80 80 80 95 105 50 Average Speed 98 | 81 85 80 80 80 103 151 144 Slowest Speed 680 | 90 95 80 80 80 110 680 197 Overloaded Moves . | . . . . . . . . Propulsion Burnouts . | . . . . . . . . Robots Hopped . | . . . . . . . . Cave-ins Triggered . | . . . . . . . . Exploration Rate (%) 35 | 4 32 50 89 30 28 44 5 Regions Visited 7 Branch Regions 4 Pre-discovered Areas . | . . . . . . . . Known Exits Taken 1 | . . . . . 1 . . Unknown Exits Taken 5 | 1 1 1 1 1 . . . Scrap Searched 2 | . . 1 . 1 . . . Spaces Dug . | . . . . . . . . Terrain Destroyed 70 | . 38 26 . . . 6 . Melee . | . . . . . . . . Projectile . | . . . . . . . . AOE 70 | . 38 26 . . . 6 . Terrain Rammed . | . . . . . . . . Walls Destroyed . | . . . . . . . . Machines Disabled . | . . . . . . . . Actions | -11 -10 -10 -10 -9 -8 -8 -8 --------- Run | Yrd Mat Min Exi Min Mat Gar Sto Total 1689 | 58 200 245 464 90 171 393 68 Wait 61 | . . 3 . 10 17 6 25 Move 1394 | 40 152 231 464 78 110 291 28 Hop . | . . . . . . . . Pick Up 42 | 10 7 1 . 1 13 9 1 Fast Attach 7 | 1 . . . . . 4 2 Attach 29 | 5 4 . . . 5 11 4 Detach 3 | . . . . . . 3 . Swap 14 | . 6 . . . 2 5 1 Drop 16 | . 4 . . 1 1 10 . Fire 90 | 2 27 10 . . 23 23 5 Melee 32 | . . . . . . 31 1 Ram . | . . . . . . . . Kick 1 | . . . . . . . 1 Crush . | . . . . . . . . Escape Stasis . | . . . . . . . . Rewire . | . . . . . . . . Trap . | . . . . . . . . Miscellaneous . | . . . . . . . . Route ------- -11/Scrapyard -10/Materials (discovered 4 exits: Mat x3 / [*Min]) -10/Mines -10/Exiles -9/Mines -8/Materials (discovered 3 exits: Fac / *Sto / Gar) -8/Garrison -8/Storage History --------- Turn | Location | Event 10 | -11/Scrapyard | Discovered new exit (range 15) 56 | -11/Scrapyard | Entered Materials 134 | -10/Materials | Identified exit to Materials 213 | -10/Materials | Core integrity fell below 50% 222 | -10/Materials | Lost 3 parts (1p1n1w) 258 | -10/Materials | Discovered new exit (range 16) 281 | -10/Materials | Entered Mines 308 | -10/Mines | Build established: Mutant 352 | -10/Mines | Received a Rocket Launcher from a helpful Derelict 497 | -10/Mines | Deemed a non-threat by the Exiles lab entrance 497 | -10/Mines | Discovered new exit (range 5) 500 | -10/Mines | Entered Exiles 500 | -10/Exiles | Found Exiles lab abandoned 862 | -10/Exiles | Discovered new exit (range 14) 872 | -10/Exiles | Entered Mines 873 | -9/Mines | Assembled infested the area 877 | -9/Mines | Assisted by bots powering up and referring to "LRC-V3" 878 | -9/Mines | Assisted by a Guerilla fighting off Assembled 893 | -9/Mines | Met a Derelict bent on vengeance 896 | -9/Mines | Found the Drone Emporium 901 | -9/Mines | Found Prototype Device 919 | -9/Mines | Found a hidden stash of uninstalled traps 922 | -9/Mines | Discovered new exit (range 16) 927 | -9/Mines | Learned 4 Materials zone layouts 946 | -9/Mines | Entered Materials 946 | -8/Materials | Accompanied by 3 allies 946 | -8/Materials | Evolved 4 slots: Utility x4 946 | -8/Materials | Identified Bomb Drone Bay 947 | -8/Materials | Identified exit to Factory 956 | -8/Materials | Discovered new exit (range 22) 1121 | -8/Materials | Garrison activated, responded to threat 1166 | -8/Materials | Identified exit to Garrison 1167 | -8/Materials | Entered Garrison 1225 | -8/Garrison | Triggered checkpoint 1301 | -8/Garrison | Lost 4 parts (1p2n1w) 1309 | -8/Garrison | Installed Relay Interface Framework 1388 | -8/Garrison | Garrison Relay disabled 1408 | -8/Garrison | Rescued a captive Derelict 1408 | -8/Garrison | Rescued a captive Derelict 1463 | -8/Garrison | Triggered checkpoint 1513 | -8/Garrison | Lost 5 allies 1521 | -8/Garrison | Triggered checkpoint 1572 | -8/Garrison | Discovered new exit (range 12) 1597 | -8/Garrison | Triggered checkpoint 1599 | -8/Garrison | Core integrity fell below 50% 1672 | -8/Garrison | Garrison Relay disabled 1794 | -8/Garrison | Entered Storage 1794 | -8/Storage | Accompanied by 1 ally 1854 | -8/Storage | Repaired Flight Unit 1868 | -8/Storage | Core integrity fell below 20% 1869 | -8/Storage | Released all parts (7) 1886 | -8/Storage | Core destroyed Last Messages --------------- Released Melee Analysis Suite. Released Hvy. Assault Rifle. Released Target Analyzer. Released Flight Unit. Acquired Carbon-fiber Leg. Carbon-fiber Leg severed. Slug penetrates Wall. Hvy. Flail severed. K-01 Serf collects debris. Kicked L-31 Rogue. Slug penetrates Wall. Bomb Drone released from Bomb Drone Bay. Bomb Drone sneak attacks. Bomb Drone detonates. Bomb Drone destroyed. L-31 Rogue destroyed. Repair Station disabled. Backup Propulsion I tumbles out of repair station. Bomb Drone Bay destroyed. Map ----- +----------------------------------------------------+ | ?????????????????????????????????? | | ?????????????????????????????????? | | ?????????????????????????????????? | | ?????????????????????????????????? | | ?????????????????????????????????? | | ?????????????????????????????????? | | ?????????????????????????????????? | | ?????????????????????????????????? | | ?????????????????????????????????? | | ?????????????????????????????????? | | ?????????????????????????????????? | | ?????????????????????????????????? | | ?????????????????????????????????? | | ?????????????????????????????????? | | ?????????????????????????????????? | | ?????????????????????????????????? | | ??????????"""????????????????????? | | ?????????? ????????????????????? | | ?????????? ????????????????????? | | ?????######/########### #??????? | | ?????# k #??????? | | ?????# +??????? | | ?????# % #??????? | | ?????##### #####+##?????????? | | ??????# =/% #????????????????? | | ??????# @ ! #????????????????? | | ??????# ????????????????? | | ??????# =g #????????????????? | | ??????#"" !] #????????????????? | | ??????#"R*[ #????????????????? | | ??????#""" !#????????????????? | | ??????# [ #????????????????? | | ??????###########????????????????? | | | | | | | | | | | | | | | | | | | | | | | | | | | | | | | | | | | +----------------------------------------------------+ Best States ------------- Heat Dissipation 31 Energy Generation 15 Energy Capacity 250 Matter Stores 300 Matter Capacity 300 Sight Range 16 Terrain Scan Range 16 Terrain Scan Density 10 Armor Coverage 300 Evasion (%) 50 Melee Accuracy 10 Target Analysis 5 Offensive Hacking 10 Item Schematics ----------------- None Robot Schematics ------------------ None Fabricated ------------ Nothing Alien Tech Used ----------------- None Achievements -------------- None Challenges ------------ None Game ------ Seed BarrageWeldingFilter Manual? 0 Play Time 00:32:49 Cumulative 46.6 hours Start 2024.04.16 @ 04:03:31 End 2024.04.16 @ 04:34:58 Sessions 1 Manual Loads 0 Difficulty Rogue Special Mode None Game No. 51 Rogue 42 Adventurer 9 Explorer 0 Win Type - Total 0 Types 0/0/0/0/0/0/0/0/0 Lore% 31 Gallery% 45 Achievement% 36 Wizard Run 0 Options --------- Layout 1 ASCII 0 Keyboard 0 Movement Mouse Keybinds 0 Fullscreen 1 Font 24/Smallcaps Map View 50x35 Zoom Use 0% Tactical HUD 0 Map Filters NONE Filters NONE Steam 1 RUN: 36ce43f8-18ac-404c-9c02-1c1397a32670